fUSD/lending_fUSD_20240222
["ID","MTS","AMOUNT","RATE_DAILY","PERIOD"]
[314877501,1708609851342,-500.0,0.00032876,2]
[314877502,1708609851351,-825.39,0.00032876,2]
[314877503,1708609851360,-576.04,0.00032876,2]
[314877504,1708609851371,-500.0,0.00032876,2]
[314877505,1708609851380,-500.0,0.00032876,2]
[314877506,1708609851392,-2086.94,0.00032876,2]
[314877507,1708609851401,-500.0,0.00032876,2]
[314877508,1708609851411,-2086.94,0.00032876,2]
[314877509,1708609851420,-500.0,0.00032876,2]
[314877510,1708609851430,-2086.94,0.00032876,2]
[314877511,1708609851439,-2086.94,0.00032876,2]
[314877512,1708609851448,-500.0,0.00032876,2]
[314877513,1708609851458,-1242.56,0.00032876,2]
[314877514,1708609851467,-2086.94,0.00032876,2]
[314877515,1708609851476,-500.0,0.00032876,2]
[314877516,1708609851485,-2086.94,0.00032876,2]
[314877517,1708609851494,-13963.74,0.00032876,2]
[314877518,1708609851503,-500.0,0.00032876,2]
[314877519,1708609851512,-2086.94,0.00032876,2]
[314877520,1708609851522,-500.0,0.00032876,2]
[314877521,1708609851531,-500.0,0.00032876,2]
[314877522,1708609851540,-2086.94,0.00032876,2]
[314877523,1708609851550,-2086.94,0.00032876,2]
[314877524,1708609851559,-1561.5,0.00032876,2]
[314877525,1708609851569,-1135.05,0.00032876,2]
[314877526,1708609851578,-500.0,0.00032876,2]
[314877527,1708609851588,-2086.94,0.00032876,2]
[314877528,1708609851597,-1170.94,0.00032876,2]
[314877529,1708609851607,-724.87,0.00032876,2]
[314877530,1708609851616,-500.0,0.00032876,2]
[314877531,1708609851626,-500.0,0.00032876,2]
[314877532,1708609851636,-716.12,0.00032876,2]
[314877533,1708609851645,-500.0,0.00032876,2]
[314877534,1708609851656,-500.0,0.00032876,2]
[314877535,1708609851666,-500.0,0.00032876,2]
[314877536,1708609851676,-585.55628224,0.00032876,2]
[314877537,1708609851694,-500.0,0.00032876,2]
[314877538,1708609851714,-500.0,0.00032876,2]
[314877539,1708609851724,-500.0,0.00032876,2]
[314877540,1708609851733,-500.0,0.00032876,2]
[314877541,1708609851742,-500.0,0.00032876,2]
[314877542,1708609851752,-500.0,0.00032876,2]
[314877543,1708609851762,-1271.21,0.00032876,2]
[314877544,1708609851771,-626.09,0.00032876,2]
[314877545,1708609851780,-570.76,0.00032876,2]
[314877546,1708609851789,-1096.11,0.00032876,2]
[314877547,1708609851798,-785.95,0.00032876,2]
[314877548,1708609851808,-500.0,0.00032876,2]
[314877549,1708609851817,-500.0,0.00032876,2]
[314877550,1708609851827,-500.0,0.00032876,2]
[314877551,1708609851836,-500.0,0.00032876,2]
[314877552,1708609851845,-1088.96,0.00032876,2]
[314877553,1708609851855,-1197.14,0.00032876,2]
[314877554,1708609851864,-500.0,0.00032876,2]
[314877555,1708609851874,-1351.81,0.00032876,2]
[314877556,1708609851883,-500.0,0.00032876,2]
[314877557,1708609851892,-500.0,0.00032876,2]
[314877558,1708609851901,-500.0,0.00032876,2]
[314877559,1708609851910,-587.28,0.00032876,2]
[314877560,1708609851920,-500.0,0.00032876,2]
[314877561,1708609851929,-500.0,0.00032876,2]
[314877562,1708609852054,-887.23,0.00032876,2]
[314877563,1708609852065,-781.64,0.00032876,2]
[314877564,1708609852075,-1234.6,0.00032876,2]
[314877565,1708609852085,-500.0,0.00032876,2]
[314877566,1708609852095,-500.0,0.00032876,2]
[314877567,1708609852106,-865.4,0.00032876,2]
[314877568,1708609852116,-500.0,0.00032876,2]
[314877569,1708609852127,-1813.35,0.00032876,2]
[314877570,1708609852141,-515.85179392,0.00032876,2]
[314877571,1708609852152,-1230.12,0.00032876,2]
[314877572,1708609852162,-500.0,0.00032876,2]
[314877573,1708609852172,-500.0,0.00032876,2]
[314877574,1708609852181,-500.0,0.00032876,2]
[314877575,1708609852190,-855.21,0.00032876,2]
[314877576,1708609852199,-547.90671838,0.00032876,2]
[314877577,1708609852210,-727.13,0.00032876,2]
[314877578,1708609852219,-500.0,0.00032876,2]
[314877579,1708609852229,-500.0,0.00032876,2]
[314877580,1708609852238,-500.0,0.00032876,2]
[314877581,1708609852247,-334.88201494,0.00032876,2]
[314877582,1708609852256,-500.0,0.00032876,2]
[314877583,1708609852265,-500.0,0.00032876,2]
[314877584,1708609852274,-4448.36,0.00032876,2]
[314877585,1708609852283,-824.56,0.00032876,2]
[314877586,1708609852292,-2290.08,0.00032876,2]
[314877587,1708609852302,-545.15829556,0.00032876,2]
[314877588,1708609852311,-6760.81,0.00032876,2]
[314877589,1708609852319,-500.0,0.00032876,2]
[314877590,1708609852329,-919.6,0.00032876,2]
[314877591,1708609852343,-632.46,0.00032876,2]
[314877592,1708609852353,-186.91590305,0.00032876,2]
[314877593,1708609852363,-2081.64,0.00032876,2]
[314877594,1708609852373,-2395.18,0.00032876,2]
[314877595,1708609852383,-806.36,0.00032876,2]
[314877596,1708609852395,-909.68,0.00032876,2]
[314877597,1708609852405,-1438.06,0.00032876,2]
[314877598,1708609852415,-500.0,0.00032876,2]
[314877599,1708609852424,-500.0,0.00032876,2]
[314877600,1708609852435,-616.79800319,0.00032876,2]
[314877601,1708609852445,-500.0,0.00032876,2]
[314877602,1708609852454,-500.0,0.00032876,2]
[314877603,1708609852463,-3233.26,0.00032876,2]
[314877604,1708609852473,-6739.12,0.00032876,2]
[314877605,1708609852483,-500.0,0.00032876,2]
[314877606,1708609852492,-161.65,0.00032877,2]
[314877607,1708609852502,-11204.0,0.00032877,4]
[314877608,1708609852511,-412.88,0.00032877,2]
[314877609,1708609852521,-872.76,0.00032877,2]
[314877610,1708609852530,-1116.17345436,0.0003288,2]
[314877611,1708609852540,-1255.40848475,0.00032896,4]
[314877612,1708609852550,-150.0,0.00032897,2]
[314877613,1708609852559,-1245.98612859,0.000329,2]
[314877614,1708609852570,-200.0,0.000329,5]
[314877615,1708609852579,-23118.0,0.000329,3]
[314877616,1708609852589,-150.0,0.00032905,2]
[314877617,1708609852599,-150.0,0.00032913,2]
[314877618,1708609852609,-748.82617735,0.00032913,6]
[314877619,1708609852618,-150.0,0.00032914,2]
[314877620,1708609852628,-217.0,0.00032924,5]
[314877621,1708609852641,-200.0,0.00032926,2]
[314877622,1708609852651,-150.0,0.00032932,2]
[314877623,1708609852662,-150.0,0.00032942,2]
[314877624,1708609852672,-150.0,0.00032942,2]
[314877625,1708609852681,-193.58,0.00032946,2]
[314877626,1708609852691,-150.0,0.00032952,2]
[314877627,1708609852700,-150.0,0.00032961,2]
[314877628,1708609852709,-150.0,0.00032963,2]
[314877629,1708609852719,-200.0,0.00032971,3]
[314877630,1708609852729,-800.0,0.00032971,2]
[314877631,1708609852738,-200.0,0.00032971,10]
[314877632,1708609852749,-500.0,0.00032971,10]
[314877633,1708609852758,-200.0,0.00032971,10]
[314877634,1708609852769,-182.68,0.00032972,2]
[314877635,1708609852783,-402.94,0.00032988,2]
[314877636,1708609852794,-150.0,0.0003299,2]
[314877637,1708609852804,-150.0,0.00032998,2]
[314877638,1708609852814,-2761.0,0.00033,3]
[314877639,1708609852825,-1254.00428759,0.00033,2]
[314877640,1708609852836,-600.0,0.00033,34]
[314877641,1708609852846,-4000.0,0.00033,2]
[314877642,1708609852857,-150.0,0.00033003,2]
[314877643,1708609852867,-1500.0,0.00033005,2]
[314877644,1708609852878,-868.9,0.0003301,2]
[314877645,1708609852896,-150.0,0.0003301,2]
[314877646,1708609852906,-150.0,0.00033014,2]
[314877647,1708609852918,-158.17,0.00033026,2]
[314877648,1708609852928,-150.0,0.00033031,2]
[314877649,1708609852940,-150.0,0.00033033,2]
[314877650,1708609852950,-150.0,0.00033035,2]
[314877651,1708609852961,-162.72309136,0.0003305,2]
[314877652,1708609852972,-150.0,0.00033054,2]
[314877653,1708609852982,-150.0,0.00033067,2]
[314877654,1708609852993,-150.0,0.00033073,2]
[314877655,1708609853002,-150.0,0.00033075,2]
[314877656,1708609853012,-150.0,0.00033076,2]
[314877657,1708609853022,-150.0,0.0003309,2]
[314877658,1708609853032,-1255.40848475,0.00033093,5]
[314877659,1708609853042,-1379.2061293,0.00033094,2]
[314877660,1708609853056,-150.0,0.000331,2]
[314877661,1708609853067,-1000.0,0.000331,2]
[314877662,1708609853077,-1500.0,0.00033103,2]
[314877663,1708609853088,-150.0,0.00033105,2]
[314877664,1708609853098,-153.47085051,0.00033113,2]
[314877665,1708609853109,-153.47,0.00033148,2]
[314877666,1708609853119,-150.0,0.00033149,30]
[314877667,1708609853131,-150.0,0.00033149,30]
[314877668,1708609853147,-150.0,0.00033149,30]
[314877669,1708609853157,-300.0,0.00033149,2]
[314877670,1708609853167,-300.0,0.00033149,2]
[314877671,1708609853177,-300.0,0.00033149,2]
[314877672,1708609853187,-300.0,0.00033149,2]
[314877673,1708609853197,-300.0,0.00033149,2]
[314877674,1708609853208,-2086.94,0.00033149,4]
[314877675,1708609853218,-2086.94,0.00033149,4]
[314877676,1708609853228,-2086.94,0.00033149,4]
[314877677,1708609853238,-76919.86680951,0.0003315,4]
[314877678,1708609853946,-1853.75328718,0.0003315,4]
[314877679,1708609853959,-2032.36852873,0.0003315,4]
[314877680,1708609853971,-588.94,0.0003315,4]
[314877681,1708609854596,-448737.01387509,0.0003315,4]
[314877682,1708609854609,-1780.0858619,0.0003315,4]
[314877683,1708609854621,-5431.70325421,0.0003315,4]
[314877684,1708609854632,-37871.9086599,0.0003315,4]
[314877685,1708609854694,-688.5,0.0003315,4]
[314877686,1708609854725,-614.729862,0.0003315,4]
[314877687,1708609854823,-150.0,0.00032513,2]
[314877688,1708609854833,-56842.48244573,0.0003315,4]
[314877689,1708609854845,-555.20889427,0.0003315,4]
[314877690,1708609854911,-150.0,0.00033139,2]
[314877691,1708609854921,-3626.88060595,0.0003315,4]
[314877692,1708609854946,-150.0,0.00033074,2]
[314877693,1708609854956,-80414.66970005,0.0003315,4]
[314877694,1708609855062,-150.0,0.00031668,2]
[314877695,1708609855071,-150.0,0.00031699,2]
[314877696,1708609855081,-150.0,0.00031917,2]
[314877697,1708609855091,-150.0,0.00032448,2]
[314877698,1708609855100,-500.0,0.00032876,2]
[314877699,1708609855110,-500.0,0.00032876,2]
[314877700,1708609855119,-150.0,0.0003301,2]
[314877701,1708609855130,-52787.5374362,0.0003315,4]
[314877702,1708609855141,-309.3242036,0.0003315,4]
[314877703,1708609855150,-273.0112598,0.0003315,4]
[314877704,1708609855160,-556.97964681,0.0003315,4]
[314877705,1708609855171,-500.0,0.0003315,4]
[314877706,1708609855180,-500.0,0.0003315,4]
[314877707,1708609855190,-216.29601281,0.0003315,4]
[314877708,1708609855199,-500.0,0.0003315,4]
[314877709,1708609855210,-1010.87826633,0.0003315,2]
[314877710,1708609855220,-550.240533,0.0003315,4]
[314877711,1708609855229,-500.0,0.0003315,4]
[314877712,1708609855239,-595.22864241,0.0003315,4]
[314877713,1708609855249,-500.0,0.0003315,4]
[314877714,1708609855258,-500.0,0.0003315,4]
[314877715,1708609855268,-500.0,0.0003315,4]
[314877716,1708609855277,-500.0,0.0003315,4]
[314877717,1708609855287,-500.0,0.0003315,4]
[314877718,1708609855296,-500.0,0.0003315,4]
[314877719,1708609855306,-500.0,0.0003315,4]
[314877720,1708609855315,-500.0,0.0003315,4]
[314877721,1708609855325,-500.0,0.0003315,4]
[314877722,1708609855334,-213.92057976,0.0003315,4]
[314877723,1708609855343,-500.0,0.0003315,4]
[314877724,1708609855353,-561.19687383,0.0003315,4]
[314877725,1708609855363,-500.0,0.0003315,4]
[314877726,1708609855373,-500.0,0.0003315,4]
[314877727,1708609855383,-500.0,0.0003315,4]
[314877728,1708609855395,-500.0,0.0003315,4]
[314877729,1708609855404,-500.0,0.0003315,4]
[314877730,1708609855414,-500.0,0.0003315,4]
[314877731,1708609855424,-500.0,0.0003315,4]
[314877732,1708609855434,-500.0,0.0003315,4]
[314877733,1708609855444,-500.0,0.0003315,4]
[314877734,1708609855453,-500.0,0.0003315,4]
[314877735,1708609855463,-500.0,0.0003315,4]
[314877736,1708609855472,-500.0,0.0003315,4]
[314877737,1708609855482,-500.0,0.0003315,4]
[314877738,1708609855492,-500.0,0.0003315,4]
[314877739,1708609855501,-500.0,0.0003315,4]
[314877740,1708609855511,-500.0,0.0003315,4]
[314877741,1708609855520,-500.0,0.0003315,4]
[314877742,1708609855529,-500.0,0.0003315,4]
[314877743,1708609855538,-500.0,0.0003315,4]
[314877744,1708609855548,-500.0,0.0003315,4]
[314877745,1708609855557,-500.0,0.0003315,4]
[314877746,1708609855567,-500.0,0.0003315,4]
[314877747,1708609855576,-500.0,0.0003315,4]
[314877748,1708609855585,-500.0,0.0003315,4]
[314877749,1708609855595,-500.0,0.0003315,4]
[314877750,1708609855604,-605.21464127,0.0003315,4]
[314877751,1708609855613,-500.0,0.0003315,4]
[314877752,1708609855622,-500.0,0.0003315,4]
[314877753,1708609855632,-500.0,0.0003315,4]
[314877754,1708609855642,-500.0,0.0003315,4]
[314877755,1708609855651,-500.0,0.0003315,4]
[314877756,1708609855662,-613.54933187,0.0003315,4]
[314877757,1708609855672,-527.13,0.0003315,4]
[314877758,1708609855681,-500.0,0.0003315,4]
[314877759,1708609855690,-500.0,0.0003315,4]
[314877760,1708609855701,-500.0,0.0003315,4]
[314877761,1708609855710,-500.0,0.0003315,2]
[314877762,1708609855719,-500.0,0.0003315,4]
[314877763,1708609855729,-500.0,0.0003315,4]
[314877764,1708609855738,-500.0,0.0003315,4]
[314877765,1708609855747,-500.0,0.0003315,4]
[314877766,1708609855756,-517.35,0.0003315,4]
[314877767,1708609855766,-500.0,0.0003315,4]
[314877768,1708609855776,-500.0,0.0003315,4]
[314877769,1708609855787,-500.0,0.0003315,4]
[314877770,1708609855797,-500.0,0.0003315,4]
[314877771,1708609855806,-500.0,0.0003315,4]
[314877772,1708609855816,-500.0,0.0003315,4]
[314877773,1708609855825,-500.0,0.0003315,4]
[314877774,1708609855835,-500.0,0.0003315,4]
[314877775,1708609855845,-500.0,0.0003315,4]
[314877776,1708609855854,-500.0,0.0003315,4]
[314877777,1708609855864,-500.0,0.0003315,4]
[314877778,1708609855873,-500.0,0.0003315,4]
[314877779,1708609855883,-500.0,0.0003315,4]
[314877780,1708609855893,-500.0,0.0003315,4]
[314877781,1708609855903,-500.0,0.0003315,4]
[314877782,1708609855912,-327.44,0.0003315,4]
[314877783,1708609855922,-500.0,0.0003315,2]
[314877784,1708609855932,-500.0,0.0003315,4]
[314877785,1708609855942,-500.0,0.0003315,4]
[314877786,1708609855952,-500.0,0.0003315,4]
[314877787,1708609855961,-500.0,0.0003315,4]
[314877788,1708609855971,-500.0,0.0003315,4]
[314877789,1708609855981,-500.0,0.0003315,4]
[314877790,1708609855991,-503.29,0.0003315,4]
[314877791,1708609856001,-500.0,0.0003315,4]
[314877792,1708609856011,-500.0,0.0003315,4]
[314877793,1708609856021,-500.0,0.0003315,4]
[314877794,1708609856031,-500.0,0.0003315,4]
[314877795,1708609856040,-500.0,0.0003315,4]
[314877796,1708609856050,-500.0,0.0003315,4]
[314877797,1708609856059,-500.0,0.0003315,4]
[314877798,1708609856069,-536.45,0.0003315,4]
[314877799,1708609856079,-500.0,0.0003315,4]
[314877800,1708609856089,-726.64,0.0003315,4]
[314877801,1708609856099,-500.0,0.0003315,4]
[314877802,1708609856117,-500.0,0.0003315,4]
[314877803,1708609856127,-631.38383829,0.0003315,4]
[314877804,1708609856137,-500.0,0.0003315,4]
[314877805,1708609856148,-500.0,0.0003315,4]
[314877806,1708609856158,-500.0,0.0003315,4]
[314877807,1708609856168,-160.60613479,0.0003315,4]
[314877808,1708609856177,-500.0,0.0003315,4]
[314877809,1708609856187,-185.33246672,0.0003315,4]
[314877810,1708609856197,-500.0,0.0003315,4]
[314877811,1708609856206,-510.41499359,0.0003315,4]
[314877812,1708609856216,-500.0,0.0003315,4]
[314877813,1708609856225,-500.0,0.0003315,4]
[314877814,1708609856235,-500.0,0.0003315,4]
[314877815,1708609856244,-500.0,0.0003315,4]
[314877816,1708609856253,-500.0,0.0003315,4]
[314877817,1708609856263,-500.0,0.0003315,4]
[314877818,1708609856273,-500.0,0.0003315,4]
[314877819,1708609856282,-500.0,0.0003315,4]
[314877820,1708609856292,-566.32,0.0003315,4]
[314877821,1708609856301,-500.0,0.0003315,4]
[314877822,1708609856311,-500.0,0.0003315,4]
[314877823,1708609856320,-500.0,0.0003315,4]
[314877824,1708609856330,-500.0,0.0003315,4]
[314877825,1708609856339,-500.0,0.0003315,4]
[314877826,1708609856348,-525.24056898,0.0003315,4]
[314877827,1708609856358,-500.0,0.0003315,4]
[314877828,1708609856367,-500.0,0.0003315,4]
[314877829,1708609856376,-500.0,0.0003315,4]
[314877830,1708609856386,-500.0,0.0003315,4]
[314877831,1708609856399,-500.0,0.0003315,4]
[314877832,1708609856409,-500.0,0.0003315,4]
[314877833,1708609856419,-267.79395078,0.0003315,4]
[314877834,1708609856430,-564.58269831,0.0003315,4]
[314877835,1708609856440,-500.0,0.0003315,4]
[314877836,1708609856451,-500.0,0.0003315,4]
[314877837,1708609856461,-1375.28,0.0003315,4]
[314877838,1708609856472,-342.63227385,0.0003315,4]
[314877839,1708609856481,-500.0,0.0003315,4]
[314877840,1708609856491,-500.0,0.0003315,4]
[314877841,1708609856501,-896.5,0.0003315,4]
[314877842,1708609856511,-500.0,0.0003315,4]
[314877843,1708609856521,-500.0,0.0003315,4]
[314877844,1708609856531,-500.0,0.0003315,4]
[314877845,1708609856541,-500.0,0.0003315,4]
[314877846,1708609856551,-766.25,0.0003315,4]
[314877847,1708609856561,-500.0,0.0003315,4]
[314877848,1708609856571,-500.0,0.0003315,4]
[314877849,1708609856581,-500.0,0.0003315,4]
[314877850,1708609856591,-506.52,0.0003315,4]
[314877851,1708609856602,-662.63,0.0003315,4]
[314877852,1708609856611,-500.0,0.0003315,4]
[314877853,1708609856622,-500.0,0.0003315,4]
[314877854,1708609856631,-500.0,0.0003315,4]
[314877855,1708609856645,-497.48104,0.0003315,4]
[314877856,1708609856654,-500.0,0.0003315,4]
[314877857,1708609856666,-579.56,0.0003315,4]
[314877858,1708609856676,-854.7,0.0003315,4]
[314877859,1708609856685,-1187.31,0.0003315,4]
[314877860,1708609856695,-633.76,0.0003315,4]
[314877861,1708609856704,-500.0,0.0003315,4]
[314877862,1708609856713,-500.0,0.0003315,4]
[314877863,1708609856723,-1894.12,0.0003315,4]
[314877864,1708609856733,-636.45,0.0003315,4]
[314877865,1708609856742,-1524.6,0.0003315,2]
[314877866,1708609856751,-500.0,0.0003315,4]
[314877867,1708609856761,-652.66,0.0003315,4]
[314877868,1708609856770,-500.0,0.0003315,2]
[314877869,1708609856780,-859.32,0.0003315,4]
[314877870,1708609856791,-793.44,0.0003315,4]
[314877871,1708609856800,-500.0,0.0003315,4]
[314877872,1708609856810,-500.0,0.0003315,4]
[314877873,1708609856819,-519.33433874,0.0003315,2]
[314877874,1708609856829,-500.0,0.0003315,4]
[314877875,1708609856839,-901.43,0.0003315,4]
[314877876,1708609856849,-566.09,0.0003315,4]
[314877877,1708609856858,-1111.57,0.0003315,4]
[314877878,1708609856868,-500.0,0.0003315,4]
[314877879,1708609856878,-500.0,0.0003315,4]
[314877880,1708609856890,-564.7,0.0003315,4]
[314877881,1708609856900,-276.87907646,0.0003315,4]
[314877882,1708609856911,-732.46,0.0003315,4]
[314877883,1708609857013,-150.0,0.0003315,2]
[314877884,1708609857024,-500.0,0.0003315,4]
[314877885,1708609857033,-667.76,0.0003315,4]
[314877886,1708609857042,-500.0,0.0003315,4]
[314877887,1708609857052,-500.0,0.0003315,4]
[314877888,1708609857061,-500.0,0.0003315,4]
[314877889,1708609857070,-653.81,0.0003315,4]
[314877890,1708609857079,-996.89,0.0003315,4]
[314877891,1708609857089,-836.01,0.0003315,4]
[314877892,1708609857098,-909.15,0.0003315,4]
[314877893,1708609857108,-500.0,0.0003315,4]
[314877894,1708609857117,-369.51266229,0.0003315,4]
[314877895,1708609857127,-500.0,0.0003315,4]
[314877896,1708609857141,-500.0,0.0003315,4]
[314877897,1708609857151,-500.0,0.0003315,4]
[314877898,1708609857160,-500.0,0.0003315,4]
[314877899,1708609857170,-1487.22,0.0003315,4]
[314877900,1708609857179,-575.54,0.0003315,4]
[314877901,1708609857189,-632.46,0.0003315,4]
[314877902,1708609857198,-560.23,0.0003315,4]
[314877903,1708609857208,-565.52,0.0003315,4]
[314877904,1708609857218,-500.0,0.0003315,4]
[314877905,1708609857227,-500.0,0.0003315,4]
[314877906,1708609857236,-500.0,0.0003315,4]
[314877907,1708609857245,-500.0,0.0003315,4]
[314877908,1708609857254,-695.04,0.0003315,4]
[314877909,1708609857263,-500.0,0.0003315,4]
[314877910,1708609857272,-658.88,0.0003315,4]
[314877911,1708609857282,-500.0,0.0003315,4]
[314877912,1708609857291,-615.98,0.0003315,4]
[314877913,1708609857300,-613.94,0.0003315,4]
[314877914,1708609857309,-500.0,0.0003315,4]
[314877915,1708609857318,-500.0,0.0003315,4]
[314877916,1708609857327,-500.0,0.0003315,4]
[314877917,1708609857336,-621.11,0.0003315,4]
[314877918,1708609857345,-500.0,0.0003315,4]
[314877919,1708609857354,-547.47,0.0003315,4]
[314877920,1708609857363,-548.09,0.0003315,4]
[314877921,1708609857372,-500.0,0.0003315,4]
[314877922,1708609857381,-250.0,0.0003315,4]
[314877923,1708609857391,-500.0,0.0003315,4]
[314877924,1708609857400,-500.0,0.0003315,4]
[314877925,1708609857409,-918.32,0.0003315,4]
[314877926,1708609857418,-658.75,0.0003315,4]
[314877927,1708609857427,-807.52,0.0003315,4]
[314877928,1708609857436,-588.13733895,0.0003315,4]
[314877929,1708609857446,-1038.59,0.0003315,4]
[314877930,1708609857455,-610.07,0.0003315,4]
[314877931,1708609857464,-895.75,0.0003315,4]
[314877932,1708609857473,-500.0,0.0003315,4]
[314877933,1708609857483,-758.39,0.0003315,4]
[314877934,1708609857492,-586.25,0.0003315,4]
[314877935,1708609857500,-500.0,0.0003315,2]
[314877936,1708609857509,-500.0,0.0003315,4]
[314877937,1708609857518,-500.0,0.0003315,4]
[314877938,1708609857528,-500.0,0.0003315,4]
[314877939,1708609857538,-1000.0,0.0003315,7]
[314877940,1708609857547,-552.4,0.0003315,4]
[314877941,1708609857556,-500.0,0.0003315,4]
[314877942,1708609857565,-500.0,0.0003315,4]
[314877943,1708609857574,-500.0,0.0003315,4]
[314877944,1708609857583,-640.49,0.0003315,4]
[314877945,1708609857592,-557.63,0.0003315,4]
[314877946,1708609857602,-500.0,0.0003315,4]
[314877947,1708609857611,-500.0,0.0003315,4]
[314877948,1708609857620,-844.41,0.0003315,4]
[314877949,1708609857629,-514.79,0.0003315,4]
[314877950,1708609857640,-500.0,0.0003315,4]
[314877951,1708609857649,-500.0,0.0003315,4]
[314877952,1708609857659,-500.0,0.0003315,2]
[314877953,1708609857669,-500.0,0.0003315,4]
[314877954,1708609857678,-748.03,0.0003315,4]
[314877955,1708609857687,-1140.47,0.0003315,4]
[314877956,1708609857696,-732.29,0.0003315,4]
[314877957,1708609857705,-675.62,0.0003315,4]
[314877958,1708609857714,-500.0,0.0003315,4]
[314877959,1708609857723,-500.0,0.0003315,4]
[314877960,1708609857732,-623.06,0.0003315,4]
[314877961,1708609857741,-500.0,0.0003315,4]
[314877962,1708609857750,-861.16,0.0003315,4]
[314877963,1708609857760,-500.0,0.0003315,4]
[314877964,1708609857768,-500.0,0.0003315,2]
[314877965,1708609857778,-1000.0,0.0003315,7]
[314877966,1708609857787,-500.0,0.0003315,4]
[314877967,1708609857796,-761.36,0.0003315,4]
[314877968,1708609857805,-691.2,0.0003315,4]
[314877969,1708609857814,-500.0,0.0003315,4]
[314877970,1708609857823,-982.68,0.0003315,4]
[314877971,1708609857833,-500.0,0.0003315,4]
[314877972,1708609857842,-500.0,0.0003315,4]
[314877973,1708609857851,-500.0,0.0003315,4]
[314877974,1708609857860,-714.21,0.0003315,4]
[314877975,1708609857870,-500.0,0.0003315,4]
[314877976,1708609857878,-500.0,0.0003315,4]
[314877977,1708609857887,-500.0,0.0003315,4]
[314877978,1708609857898,-670.54,0.0003315,4]
[314877979,1708609857907,-500.0,0.0003315,4]
[314877980,1708609857916,-500.0,0.0003315,4]
[314877981,1708609857925,-693.59,0.0003315,4]
[314877982,1708609857935,-675.89,0.0003315,4]
[314877983,1708609857944,-1131.45,0.0003315,4]
[314877984,1708609857953,-680.26,0.0003315,4]
[314877985,1708609857962,-500.0,0.0003315,4]
[314877986,1708609857971,-500.0,0.0003315,4]
[314877987,1708609857980,-500.0,0.0003315,4]
[314877988,1708609857989,-500.0,0.0003315,4]
[314877989,1708609857998,-500.0,0.0003315,4]
[314877990,1708609858007,-694.12,0.0003315,4]
[314877991,1708609858016,-500.0,0.0003315,4]
[314877992,1708609858025,-795.51,0.0003315,4]
[314877993,1708609858034,-500.0,0.0003315,4]
[314877994,1708609858043,-500.0,0.0003315,4]
[314877995,1708609858052,-617.16,0.0003315,4]
[314877996,1708609858061,-500.0,0.0003315,4]
[314877997,1708609858071,-500.0,0.0003315,4]
[314877998,1708609858080,-595.82,0.0003315,4]
[314877999,1708609858090,-500.0,0.0003315,4]
[314878000,1708609858100,-500.0,0.0003315,4]